Cogmind - Beta 11 --- EXPLORER MODE // 2022.03.27 @ 18:12:30 Player: viper Result: Self-destructed Performance ------------- Evolutions (9) 4500 Regions Visited (16) 3200 Robots Destroyed (393) 1965 Value Destroyed (18816) 18816 Prototype IDs (37) 740 Alien Tech Used (0) 0 Bonus (2522) 2522 TOTAL SCORE: 31743 Bonus ------- High Alert Combat Kills 1063 Follower Combat Kills 582 Entered DSFs 500 A7 Reached Mainframe 300 Scanned by Researcher 500 Friendly Fire -423 Cogmind --------- Core Integrity 193/1600 Matter 219/300 Energy 33/100 System Corruption 70% Temperature Cool (32) Movement Core (250) Ox4 Location -1/Access Parts ------- > --- POWER (4) -------- (None) > --- PROPULSION (8) --- Armored Heavy Treads > --- UTILITY (11) ----- (None) > --- WEAPON (3) ------- Enhanced Nova Cannon > --- INVENTORY (5) ---- Advanced Terrain Scan Processor Peak State ------------ > --- POWER ------------ Heavy Antimatter Reactor Heavy Antimatter Reactor Particle Reactor Quantum Reactor > --- PROPULSION ------- Armored Medium Treads Armored Medium Treads Armored Heavy Treads Advanced Heavy Treads Advanced Heavy Siege Treads > --- UTILITY ---------- Advanced Cooling System Experimental Cooling System Huge Storage Unit Advanced Weight Redist. System Advanced Target Analyzer Layered Medium Armor Plating Improved Hardlight Generator Advanced Dynamic Insulation System Long-range Tractor Beam > --- WEAPON ----------- Tri-rail Accelerator Linear Accelerator > --- INVENTORY -------- Antimatter Reactor Improved Fusion Compressor Particle Reactor Micro Antimatter Reactor Graviton Reactor Light Quantum Reactor Improved Quantum Reactor Advanced Terrain Scan Processor Improved Hardlight Generator HERF Cannon Gauss Rifle Gauss Rifle Gauss Rifle Gauss Rifle Coil Gun Heavy Machine Gun KE Penetrator Railgun Mini Assault Cannon Hardcell Cannon Mining Laser Vibroblade Nanosword [Rating: 177] Favorites ----------- Power Cooled Ion Engine Engine Cooled Ion Engine Power Core Micro Fission Core Reactor Heavy Antimatter Reactor Propulsion Titanium Leg Treads Medium Treads Leg Titanium Leg Utility Huge Storage Unit Device Trap Scanner Storage Huge Storage Unit Processor Advanced Targeting Computer Hackware System Shield Protection Utility Shielding Weapon Mini Assault Cannon Energy Cannon HERF Cannon Ballistic Gun Gauss Rifle Ballistic Cannon Mini Assault Cannon Special Weapon Mining Laser Impact Weapon Gravity Flail Slashing Weapon Vibroblade Build | -11 -10 -9 -8 -7 -6 -5 -5 -5 -5 -5 -4 -4 -3 -2 -2 -1 ------- Run | Scr Mat Mat Mat Fac Fac Fac Ext Cet Arc Hub Fac DSF Res Res Tes Acc Slots Evolved 19 | . 1 2 2 2 2 2 . . . . 2 . 2 2 . 2 Power 3 | . . 1 . . . . . . . . 1 . . . . 1 Propulsion 6 | . . . 2 . . 2 . . . . . . 2 . . . Utility 9 | . . 1 . 2 2 . . . . . 1 . . 2 . 1 Weapon 1 | . 1 . . . . . . . . . . . . . . . Parts Attached 231 | 7 6 26 12 21 2 7 9 16 7 4 7 6 21 10 14 56 Power 45 | 1 . 7 1 2 . . 1 3 1 2 1 . 9 . 2 15 Engine 12 | 1 . 7 1 2 . . . . 1 . . . . . . . Core 6 | . . . . . . . 1 2 . 1 . . 1 . . 1 Reactor 27 | . . . . . . . . 1 . 1 1 . 8 . 2 14 Propulsion 58 | 2 2 5 6 6 . 5 4 3 3 1 4 4 1 . 5 7 Treads 38 | . . . . 4 . 5 4 1 3 1 4 4 1 . 5 6 Leg 20 | 2 2 5 6 2 . . . 2 . . . . . . . 1 Wheel . | . . . . . . . . . . . . . . . . . Hover . | . . . . . . . . . . . . . . . . . Flight . | . . . . . . . . . . . . . . . . . Utility 55 | 2 1 2 3 5 2 . 2 2 . 1 1 1 9 6 3 15 Device 32 | . . . . 2 2 . . . . 1 1 1 6 3 3 13 Storage 10 | 1 1 1 2 1 . . 1 . . . . . 1 1 . 1 Processor 6 | 1 . . 1 . . . . 1 . . . . 2 1 . . Hackware 1 | . . . . . . . . . . . . . . 1 . . Protection 6 | . . 1 . 2 . . 1 1 . . . . . . . 1 Artifact . | . . . . . . . . . . . . . . . . . Weapon 73 | 2 3 12 2 8 . 2 2 8 3 . 1 1 2 4 4 19 Energy Gun . | . . . . . . . . . . . . . . . . . Energy Cannon 3 | . . . . . . . . . . . . . . . 1 2 Ballistic Gun 38 | 2 2 8 1 4 . 2 . 6 2 . 1 1 . 1 . 8 Ballistic Cannon 21 | . . 4 1 3 . . 2 1 . . . . 2 2 2 4 Launcher . | . . . . . . . . . . . . . . . . . Special Weapon 5 | . 1 . . 1 . . . 1 1 . . . . . . 1 Impact Weapon 1 | . . . . . . . . . . . . . . . . 1 Slashing Weapon 5 | . . . . . . . . . . . . . . 1 1 3 Piercing Weapon . | . . . . . . . . . . . . . . . . . Special Melee Weapon . | . . . . . . . . . . . . . . . . . Unidentified Prototypes 20 | . . 2 1 1 . . . 2 . . 1 . 6 1 1 5 Parts Lost 96 | . . . . . . . 4 10 1 4 . . . 5 8 64 Power 20 | . . . . . . . 1 3 . 2 . . . . . 14 Propulsion 19 | . . . . . . . 2 3 . . . . . . 4 10 Utility 34 | . . . . . . . 1 2 . 1 . . . 5 2 23 Weapon 23 | . . . . . . . . 2 1 1 . . . . 2 17 Highest Loss Streak 22 | . . . . . . . 2 9 1 2 . . . 2 3 22 To Critical Strikes 16 | . . . . . . . . . . 1 . . . . . 15 Average Slot Usage (%) 88 | . 100 98 99 99 100 99 90 75 79 82 84 86 80 80 78 52 Engine 8 | . 12 19 15 13 12 11 6 1 5 2 . . . . . . Core 1 | . . . . . . . 3 7 5 2 5 5 2 . . . Reactor 3 | . . . . . . . . . . 4 6 10 10 12 12 9 Treads 10 | . . . . 10 25 32 23 8 5 18 18 16 18 16 14 14 Leg 10 | . 25 19 33 17 . . . 1 7 . . . . . . . Device 9 | . . . . 4 18 16 14 11 11 11 20 20 16 23 21 12 Storage 8 | . 12 10 8 9 6 5 7 11 11 11 10 10 9 7 8 3 Processor 7 | . 12 10 8 7 6 5 5 9 11 11 10 10 10 6 8 1 Protection 6 | . . 10 8 14 12 11 11 6 5 2 . . . . . 1 Ballistic Gun 9 | . 36 16 8 2 18 16 5 9 10 11 8 10 5 4 2 1 Ballistic Cannon 9 | . . 11 15 18 . . 10 5 5 5 5 5 7 8 7 4 Naked Turns 68 | . . . . . . . . . . . . . . . . 68 Heaviest Build 205 | 17 28 48 108 112 116 117 121 132 124 126 142 144 174 176 176 205 Greatest Support 280 | 20 20 34 68 112 112 168 184 208 136 215 229 214 256 256 280 280 Greatest Overweight (x) 47 | 2 2 11 2 3 1 1 . 3 3 . . 1 . . 8 47 Average Overweight (x) . | . . . . . 1 . . . 1 . . . . . . . Largest Inventory Capacity 25 | 10 15 15 25 25 25 25 25 25 25 25 25 25 25 25 25 25 Average Capacity 21 | 7 14 15 18 25 25 25 25 25 25 25 25 25 25 25 25 22 Most Carried 25 | 3 12 15 16 25 24 24 25 25 20 20 22 25 25 25 25 23 Average Carried 18 | 1 7 14 14 20 23 23 23 21 19 19 17 24 24 24 23 15 Final Capacity 25 | 10 15 15 25 25 25 25 25 25 25 25 25 25 25 25 25 5 Final Carried 25 | 3 12 15 16 25 24 24 24 21 20 18 20 25 25 25 21 1 Class Distribution -------------------- 63% | Hacker-Gunner 21% | Generator-Gunner 7% | Hacker-Mutant 3% | Generator-Tank Dominant Class ---------------- Hacker-Gunner | -10/Materials Hacker-Gunner | -9/Materials Hacker-Gunner | -8/Materials Hacker-Gunner | -7/Factory Hacker-Gunner | -6/Factory Hacker-Gunner | -5/Factory Hacker-Gunner | -5/Extension Hacker-Gunner | -5/Cetus Hacker-Gunner | -5/Archives Hacker-Gunner | -5/Hub_04(d) Hacker-Gunner | -4/Factory Generator-Gunner | -4/DSF Generator-Gunner | -3/Research Generator-Gunner | -2/Research Generator-Mutant | -2/Testing Generator-Gunner | -1/Access Resources | -11 -10 -9 -8 -7 -6 -5 -5 -5 -5 -5 -4 -4 -3 -2 -2 -1 ----------- Run | Scr Mat Mat Mat Fac Fac Fac Ext Cet Arc Hub Fac DSF Res Res Tes Acc Matter Collected 13842 | 211 442 751 1210 1052 136 62 918 522 336 290 109 530 1303 1533 1247 3190 Remotely 2292 | . . . . . . . . . . . . . . . . 2292 Salvage Created 16100 | . 685 1495 1661 889 239 90 1181 650 316 554 . 536 1485 1611 1439 3269 Parts 719 | . 32 102 88 57 9 4 49 31 5 36 . 14 68 59 50 115 Haulers Intercepted 15 | . 1 5 4 1 . . . . . . . . 1 . 1 2 Recyclers Shooed 15 | . . 1 1 . . . 4 . . . . . 1 1 1 6 Parts Field Recycled . | . . . . . . . . . . . . . . . . . Retrieved Matter . | . . . . . . . . . . . . . . . . . Parts Self-Destructed . | . . . . . . . . . . . . . . . . . Prevented . | . . . . . . . . . . . . . . . . . Kills | -11 -10 -9 -8 -7 -6 -5 -5 -5 -5 -5 -4 -4 -3 -2 -2 -1 ------- Run | Scr Mat Mat Mat Fac Fac Fac Ext Cet Arc Hub Fac DSF Res Res Tes Acc Combat Hostiles Destroyed 290 | . 11 29 32 22 4 1 26 14 4 11 . 8 22 28 21 57 Melee 6 | . . . . . . . . . . . . . . . . 6 Guns 94 | . 11 15 9 . 4 1 8 12 4 6 . 5 4 7 3 5 Cannons 188 | . . 14 23 22 . . 18 2 . 5 . 3 18 21 17 45 Classes Destroyed 20 | . 5 2 3 3 . . 2 . . . . 2 . . 1 2 Worker 11 | . . . 4 1 . . . . . 1 . . . 2 . 3 Builder 13 | . . . . . . . 3 . . . . . 1 1 3 5 Tunneler 1 | . . . 1 . . . . . . . . . . . . . Hauler 15 | . 1 5 4 1 . . . . . . . . 1 . 1 2 Recycler 18 | . 2 2 3 4 . . 2 . . . . . 2 1 . 2 Mechanic 2 | . . . . . . . . . . . . . . . . 2 Operator 12 | . . 2 4 1 . . 4 . . . . . . . 1 . Watcher 26 | . 3 5 4 1 1 . 2 . . 2 . . 3 3 1 1 Swarmer 40 | . 2 5 3 6 . . 7 3 . 3 . . . 3 2 6 Grunt 119 | . 9 15 17 5 3 . 11 4 . 5 . . 11 11 12 16 Brawler 6 | . . . . 1 . . . 1 . . . . . . . 4 Duelist 4 | . . . . 1 . . . . . . . . . . . 3 Researcher 5 | . . . . . . . . . . . . . . . 5 . Sentry 42 | . . 9 10 3 . 1 3 . 4 1 . . 2 2 . 7 Specialist 5 | . . . . . . . . . . . . 2 . . 3 . Hunter 31 | . . . 2 3 . . 3 3 . . . 4 2 4 . 10 Programmer 33 | . . . . 3 1 . . 2 . 2 . 1 7 7 4 6 Heavy 1 | . . . . . . . . . . . . 1 . . . . Q-Series 5 | . . . . . . . . . . . . . . . . 5 Behemoth 3 | . . . . . . . 2 . . . . . . 1 . . Cetus Guard 1 | . . . . . . . . 1 . . . . . . . . Best Kill Streak 15 | . 5 6 7 3 3 1 14 10 3 7 . 5 6 5 11 15 Combat Bots Only 12 | . 3 5 6 3 3 1 12 10 3 7 . 5 4 5 7 9 Max Kills in Single Turn 2 | . 1 1 2 2 1 1 2 1 1 2 . 1 2 2 2 2 Gunslinging . | . . . . . . . . . . . . . . . . . Exploded . | . . . . . . . . . . . . . . . . . Melee 1 | . . . . . . . . . . . . . . . . 1 Uniques/NPCs Destroyed . | . . . . . . . . . . . . . . . . . Combat | -11 -10 -9 -8 -7 -6 -5 -5 -5 -5 -5 -4 -4 -3 -2 -2 -1 -------- Run | Scr Mat Mat Mat Fac Fac Fac Ext Cet Arc Hub Fac DSF Res Res Tes Acc Damage Taken 24636 | . 281 465 731 506 98 113 1550 1494 406 455 . 755 1289 2331 2000 12162 Core 2831 | . 80 97 103 57 18 . 140 216 30 28 . 81 257 127 190 1407 Absorbed by Shields 1830 | . . . . . . . 66 279 . . . . . . . 1485 Redirected to Shielding 212 | . . 5 8 16 12 . 59 66 41 5 . . . . . . Regen/Repaired (Parts) 425 | . . 38 166 221 . . . . . . . . . . . . Core Remaining (%) 82 | 100 68 75 81 91 97 . . . . 58 . 92 80 . 78 . Volleys Fired 877 | . 42 91 94 63 10 5 72 38 22 24 . 28 55 77 69 187 Largest 3 | . 3 3 3 3 3 3 3 3 3 3 . 3 3 3 3 3 Hottest 189 | . 100 101 103 144 84 89 134 134 111 104 . 111 162 162 189 126 Shots Fired 2343 | . 124 244 282 161 30 16 215 88 60 72 . 84 164 231 164 408 Gun 998 | . 123 176 94 6 30 16 71 49 38 48 . 56 58 77 29 127 Cannon 1327 | . . 68 188 150 . . 144 30 19 24 . 28 106 154 135 281 Launcher . | . . . . . . . . . . . . . . . . . Special 18 | . 1 . . 5 . . . 9 3 . . . . . . . Kinetic 2316 | . 123 244 282 156 30 16 215 79 57 72 . 84 164 231 159 404 Thermal 20 | . 1 . . 5 . . . 9 3 . . . . . . 2 Explosive . | . . . . . . . . . . . . . . . . . Electromagnetic 7 | . . . . . . . . . . . . . . . 5 2 Robot Hit Streak 84 | . 26 36 28 38 15 13 84 27 36 24 . 34 56 34 24 50 Robot Miss Streak 7 | . 1 2 4 2 2 1 4 7 1 1 . 1 2 2 2 2 Penetration Max 1 | . . . . . . . 1 1 1 1 . 1 1 1 1 1 Secondary Targets 6 | . 3 2 . . 1 . . . . . . . . . . . Max Gunslinging Chain 1 | . 1 1 . . 1 . . . . . . . . . . . Shots Hit Robots 1853 | . 98 199 202 102 23 13 170 62 48 55 . 74 128 180 128 371 Core Hits 894 | . 41 76 82 41 11 5 141 59 14 31 . 25 52 61 55 200 Critical Kills 7 | . . . 1 . 1 . . 2 2 . . . 1 . . . Critical Parts Destroyed 21 | . . 2 3 . . . . 3 . 3 . . 1 5 3 1 Critical Strikes 145 | . . 7 8 8 1 . 4 5 3 6 . 3 10 24 25 41 Destroy 30 | . . 2 4 . 1 . . 5 3 3 . . 2 6 3 1 Blast 111 | . . 5 4 8 . . 4 . . 3 . 3 8 18 21 37 Corrupt 2 | . . . . . . . . . . . . . . . 1 1 Smash 1 | . . . . . . . . . . . . . . . . 1 Sever 1 | . . . . . . . . . . . . . . . . 1 Melee Attacks 28 | . . . . . . . . . . . . . . . 2 26 Impact 2 | . . . . . . . . . . . . . . . . 2 Slashing 26 | . . . . . . . . . . . . . . . 2 24 Piercing . | . . . . . . . . . . . . . . . . . Sneak Attacks 1 | . . . . . . . . . . . . . . . . 1 Combat Hostiles . | . . . . . . . . . . . . . . . . . Follow-up Attacks 1 | . . . . . . . . . . . . . . . . 1 Damage Inflicted 54801 | . 780 2558 3912 2869 475 266 5133 1739 1176 1274 . 1843 5322 7170 5581 14703 Guns 16899 | . 780 1364 1329 64 475 266 1662 1060 825 910 . 1203 1675 2155 888 2243 Cannons 36149 | . . 1186 2578 2796 . . 3463 679 344 364 . 640 3480 4925 4645 11049 Explosions 14 | . . . . . . . . . . . . . . 14 . . Melee 1384 | . . . . . . . . . . . . . . . 48 1336 Ramming 355 | . . 8 5 9 . . 8 . 7 . . . 167 76 . 75 Kinetic 52769 | . 780 2550 3907 2860 475 266 5125 1739 1169 1274 . 1843 5155 7080 5358 13188 Thermal 42 | . . . . . . . . . . . . . . . . 42 Explosive 14 | . . . . . . . . . . . . . . 14 . . Electromagnetic 237 | . . . . . . . . . . . . . . . 175 62 Impact 113 | . . . . . . . . . . . . . . . . 113 Slashing 1271 | . . . . . . . . . . . . . . . 48 1223 Piercing . | . . . . . . . . . . . . . . . . . Highest Corruption 70 | . . . . . 1 1 3 3 3 5 . . 5 1 12 70 Average Corruption 8 | . . . . . 1 1 1 3 3 3 . . 3 1 5 26 Corruption Purged . | . . . . . . . . . . . . . . . . . Corruption Blocked . | . . . . . . . . . . . . . . . . . Effects 191 | . . . . . . 1 11 12 10 6 . . 18 1 19 113 Message Errors 39 | . . . . . . . 4 4 2 3 . . 1 1 4 20 Matter Fused 36 | . . . . . . . 1 2 2 3 . . 6 . 6 16 Heat Flow Errors 21 | . . . . . . . 2 . 3 . . . 3 . 3 10 Energy Discharges 20 | . . . . . . . 1 . 3 . . . 3 . 2 11 Parts Rejected 3 | . . . . . . . . 1 . . . . . . . 2 Data Loss (minor) 20 | . . . . . . . 2 4 . . . . 3 . . 11 Data Loss (major) 3 | . . . . . . . . . . . . . . . . 3 Misfires 5 | . . . . . . 1 . 1 . . . . 1 . . 2 Alerts 1 | . . . . . . . . . . . . . . . 1 . Misdirections 29 | . . . . . . . . . . . . . . . . 29 Weapon Failures 14 | . . . . . . . 1 . . . . . 1 . 3 9 Overload Shots . | . . . . . . . . . . . . . . . . . Overflow Damage 851 | . . 14 13 74 . . 6 . . . . . 132 240 150 222 Projectiles 723 | . . 14 13 74 . . 6 . . . . . 97 225 150 144 Explosions . | . . . . . . . . . . . . . . . . . Melee 128 | . . . . . . . . . . . . . 35 15 . 78 Knockbacks 263 | . . 9 13 19 . . 24 4 1 6 . 2 17 29 37 102 Impact 4 | . . . . . . . . . . . . . 1 1 . 2 Kinetic 243 | . . 9 13 19 . . 24 4 1 5 . 2 16 25 35 90 Secondary 16 | . . . . . . . . . . 1 . . . 3 2 10 Self-Inflicted Damage 10 | . . . . . . . . . . . . . . . . 10 Shots . | . . . . . . . . . . . . . . . . . Rammed 31 | . . . . 1 . . . . . . . . 7 2 . 21 Targets Rammed 41 | . . 2 1 1 . . 1 . 3 . . . 8 3 . 22 Kicked 7 | . . 2 1 . . . . . 3 . . . . . . 1 Crushed 3 | . . . . . . . 1 . . . . . 1 1 . . Highest Temperature 563 | . 138 144 425 386 . . 232 372 205 133 . . 563 149 137 236 Average Temperature 83 | . 54 37 93 84 . . 76 224 83 52 . . 124 64 57 94 Received Heat Transfer 4578 | . 255 354 576 135 54 27 323 324 72 162 . . 350 531 261 1154 Effects 13 | . . . 5 . . . . 2 . . . . 6 . . . Shutdowns 3 | . . . 3 . . . . . . . . . . . . . Energy Bleed 2 | . . . 2 . . . . . . . . . . . . . Interference 2 | . . . . . . . . 2 . . . . . . . . Damage (major) 5 | . . . . . . . . . . . . . 5 . . . Damage (core) 1 | . . . . . . . . . . . . . 1 . . . Siege Activations . | . . . . . . . . . . . . . . . . . Robots Corrupted 1 | . . . . . . . . . . . . . . . 1 . Combat Hostiles 1 | . . . . . . . . . . . . . . . 1 . Parts Fried 5 | . . . . . . . 1 . . . . . . . . 4 Impact Corruptions 8 | . . . . . . . . . . . . . 2 3 . 3 Robots Melted . | . . . . . . . . . . . . . . . . . Combat Hostiles . | . . . . . . . . . . . . . . . . . Parts Melted . | . . . . . . . . . . . . . . . . . Heat Transferred 37 | . . . . . . . . . . . . . . . . 37 Parts Sabotaged . | . . . . . . . . . . . . . . . . . Parts Stolen . | . . . . . . . . . . . . . . . . . Parts Stripped . | . . . . . . . . . . . . . . . . . Power Chain Reactions . | . . . . . . . . . . . . . . . . . Missiles Intercepted . | . . . . . . . . . . . . . . . . . Alert | -11 -10 -9 -8 -7 -6 -5 -5 -5 -5 -5 -4 -4 -3 -2 -2 -1 ------- Run | Scr Mat Mat Mat Fac Fac Fac Ext Cet Arc Hub Fac DSF Res Res Tes Acc Peak Influence 817 | . 211 308 326 213 107 104 494 375 193 358 124 270 247 581 513 817 Initial 205 | . . 12 2 8 . 38 37 114 47 . 124 66 113 66 144 205 Average 151 | . 46 86 116 62 18 66 186 226 88 144 124 184 95 308 356 428 Maximum Alert Level 3 | . 1 1 1 1 . . 2 1 . 1 . 1 1 2 2 3 Low Security (%) 71 | 100 99 84 78 99 100 100 60 41 100 78 100 47 92 20 12 1 Level 1 20 | . . 15 21 . . . 35 58 . 21 . 52 7 58 42 43 Level 2 7 | . . . . . . . 3 . . . . . . 20 45 48 Level 3 . | . . . . . . . . . . . . . . . . 5 Level 4 . | . . . . . . . . . . . . . . . . . Level 5 . | . . . . . . . . . . . . . . . . . High Security . | . . . . . . . . . . . . . . . . . Max Security . | . . . . . . . . . . . . . . . . . Sterilizations 1 | . . . . . . . . . . . . 1 . . . . Squads Dispatched 86 | . 1 5 5 9 3 1 7 2 . 4 . 2 7 6 6 28 Investigation 27 | . 1 4 4 3 1 1 1 2 . 2 . . 1 2 2 3 Extermination 19 | . . . . 3 2 . . . . 1 . . 4 2 1 6 Reinforcement 23 | . . 1 1 2 . . 6 . . 1 . 2 2 2 3 3 Assault 4 | . . . . . . . . . . . . . . . . 4 Garrison 13 | . . . . 1 . . . . . . . . . . . 12 Intercept . | . . . . . . . . . . . . . . . . . Searches Triggered . | . . . . . . . . . . . . . . . . . Construction Impeded 6 | . . . . . . . 3 . . . . . . 2 . 1 Haulers Reinforced 4 | . . . . 1 . . . . . . . . 1 . . 2 Active Scanning Responses . | . . . . . . . . . . . . . . . . . Cargo Convoy Interrupts . | . . . . . . . . . . . . . . . . . Stealth | -11 -10 -9 -8 -7 -6 -5 -5 -5 -5 -5 -4 -4 -3 -2 -2 -1 --------- Run | Scr Mat Mat Mat Fac Fac Fac Ext Cet Arc Hub Fac DSF Res Res Tes Acc Distress Signals 19 | . 2 2 1 . . . 6 1 . . . . 1 1 1 4 Communications Jammed . | . . . . . . . . . . . . . . . . . Distress Signals . | . . . . . . . . . . . . . . . . . Times Spotted 441 | . 17 39 44 25 7 3 39 22 19 17 . 8 34 31 30 106 Peak Tracking Total 14 | . 3 5 3 3 4 2 4 10 1 5 . 3 5 4 6 14 Tactical Retreats 16 | . . 2 . 1 . . 3 . . . . . 1 . . 9 Traps | -11 -10 -9 -8 -7 -6 -5 -5 -5 -5 -5 -4 -4 -3 -2 -2 -1 ------- Run | Scr Mat Mat Mat Fac Fac Fac Ext Cet Arc Hub Fac DSF Res Res Tes Acc Traps Triggered 12 | . 1 1 2 1 . 1 1 . . . . . 2 . 2 1 Indirectly . | . . . . . . . . . . . . . . . . . Trap Hack Attempts . | . . . . . . . . . . . . . . . . . Triggered . | . . . . . . . . . . . . . . . . . Disarmed 2 | . . . 2 . . . . . . . . . . . . . Reprogrammed . | . . . . . . . . . . . . . . . . . Reused . | . . . . . . . . . . . . . . . . . Traps Extracted . | . . . . . . . . . . . . . . . . . Installed . | . . . . . . . . . . . . . . . . . Triggered . | . . . . . . . . . . . . . . . . . Machines | -11 -10 -9 -8 -7 -6 -5 -5 -5 -5 -5 -4 -4 -3 -2 -2 -1 ---------- Run | Scr Mat Mat Mat Fac Fac Fac Ext Cet Arc Hub Fac DSF Res Res Tes Acc Machines Disabled 19 | . . 2 . 3 . . 1 3 2 1 . 1 2 3 1 . Max in Single Turn 1 | . . 1 . 1 . . . 1 1 1 . 1 1 1 1 . Garrison Access 2 | . . . 1 1 . . . . . . . . . . . . Machines Sabotaged . | . . . . . . . . . . . . . . . . . Garrisons Compromised . | . . . . . . . . . . . . . . . . . Overloaded Fab Kills . | . . . . . . . . . . . . . . . . . Hacking | -11 -10 -9 -8 -7 -6 -5 -5 -5 -5 -5 -4 -4 -3 -2 -2 -1 --------- Run | Scr Mat Mat Mat Fac Fac Fac Ext Cet Arc Hub Fac DSF Res Res Tes Acc Machines Accessed 65 | . 6 10 12 8 1 2 10 3 1 4 1 . 1 2 1 3 Terminals 51 | . 6 8 8 6 1 2 9 3 . 4 1 . 1 1 . 1 Fabricators . | . . . . . . . . . . . . . . . . . Repair Stations 5 | . . 1 2 1 . . 1 . . . . . . . . . Recycling Units . | . . . . . . . . . . . . . . . . . Scanalyzers 5 | . . 1 1 . . . . . . . . . . 1 1 1 Garrison Access 3 | . . . 1 1 . . . . . . . . . . . 1 Total Hacks 221 | . 17 42 43 24 4 4 16 10 25 10 2 . 2 8 5 9 Successful 170 | . 14 34 34 17 2 2 13 9 25 5 1 . 2 5 5 2 Failed 51 | . 3 8 9 7 2 2 3 1 . 5 1 . . 3 . 7 Catastrophic 5 | . . . . . . 1 . . . 2 . . . 1 . 1 Database Lockouts . | . . . . . . . . . . . . . . . . . Manual 9 | . . 2 . . . . . 2 5 . . . . . . . Terminals 152 | . 17 33 32 17 4 4 14 10 . 10 2 . 2 4 . 3 Fabricators . | . . . . . . . . . . . . . . . . . Repair Stations 18 | . . 3 7 6 . . 2 . . . . . . . . . Recycling Units . | . . . . . . . . . . . . . . . . . Scanalyzers 21 | . . 6 3 . . . . . . . . . . 4 5 3 Garrison Access 5 | . . . 1 1 . . . . . . . . . . . 3 Terminal Hacks 131 | . 14 23 25 10 2 2 11 9 25 5 1 . 2 1 . 1 Record 51 | . 1 3 8 3 . . 2 8 25 . . . . 1 . . Part Schematic 2 | . . . . . . 1 . . . 1 . . . . . . Robot Schematic 2 | . . . . . . . . . . 2 . . . . . . Robot Analysis 1 | . . . 1 . . . . . . . . . . . . . Prototype ID Bank 4 | . 2 . 1 . . . . . . . . . . . . 1 Open Door 10 | . . . . . . 1 8 1 . . . . . . . . Open DSF 3 | . . . . 2 . . . . . . 1 . . . . . Level Access Points 2 | . 1 . . 1 . . . . . . . . . . . . Branch Access Points 4 | . . 1 1 1 . . . . . . . . 1 . . . Emergency Access Points 1 | . . . . . . . . . . 1 . . . . . . Terminal Index 2 | . . 1 . 1 . . . . . . . . . . . . Recycling Unit Index 1 | . . 1 . . . . . . . . . . . . . . Scanalyzer Index 1 | . . 1 . . . . . . . . . . . . . . Alert Level 5 | . 3 2 . . . . . . . . . . . . . . Unreport Threat 1 | . . . . . 1 . . . . . . . . . . . Locate Traps 3 | . 1 . 2 . . . . . . . . . . . . . Disarm Traps 2 | . . . 2 . . . . . . . . . . . . . Dispatch Records 4 | . . 1 3 . . . . . . . . . . . . . Maintenance Status 3 | . . 2 1 . . . . . . . . . . . . . Security Status 1 | . . 1 . . . . . . . . . . . . . . Surveillance Status 1 | . . . 1 . . . . . . . . . . . . . Patrol Status 1 | . . 1 . . . . . . . . . . . . . . Transport Status 2 | . . 2 . . . . . . . . . . . . . . Investigation Status 2 | . 1 1 . . . . . . . . . . . . . . Reinforcement Status 1 | . . . 1 . . . . . . . . . . . . . Assault Status 1 | . . . 1 . . . . . . . . . . . . . Recall Investigation 1 | . . 1 . . . . . . . . . . . . . . Hauler Manifests 7 | . 2 2 2 1 . . . . . . . . . . . . Registered Components 2 | . . 1 1 . . . . . . . . . . . . . Zone Layout 10 | . 3 2 . 1 1 . 1 . . 1 . . 1 . . . Fabricator Hacks . | . . . . . . . . . . . . . . . . . Repair Station Hacks 16 | . . 3 5 6 . . 2 . . . . . . . . . Scan Component 9 | . . 2 3 3 . . 1 . . . . . . . . . Repair 7 | . . 1 2 3 . . 1 . . . . . . . . . Recycling Unit Hacks . | . . . . . . . . . . . . . . . . . Scanalyzer 19 | . . 6 3 . . . . . . . . . . 4 5 1 Insert Component 8 | . . 1 2 . . . . . . . . . . 2 2 1 Analyze 11 | . . 5 1 . . . . . . . . . . 2 3 . Garrison Access Hacks 2 | . . . 1 1 . . . . . . . . . . . . Seal Access 2 | . . . 1 1 . . . . . . . . . . . . Unauthorized Hacks 2 | . . 2 . . . . . . . . . . . . . . Terminals 2 | . . 2 . . . . . . . . . . . . . . Track 2 | . . 2 . . . . . . . . . . . . . . Fabricators . | . . . . . . . . . . . . . . . . . Repair Stations . | . . . . . . . . . . . . . . . . . Recycling Units . | . . . . . . . . . . . . . . . . . Scanalyzers . | . . . . . . . . . . . . . . . . . Garrison Access . | . . . . . . . . . . . . . . . . . Data Cores Recovered 5 | . . 1 2 . . . 1 . . . . . . . 1 . Used . | . . . . . . . . . . . . . . . . . Hacking Detections 43 | . 3 7 9 4 1 1 5 2 . 4 . . 1 2 1 3 Full Trace Events 28 | . 1 4 8 2 1 1 1 2 . 2 . . . 2 1 3 Feedback Events 3 | . . . . . . 1 . . . . . . . . . 2 Corruption 3 | . . . . . . 1 . . . . . . . . . 2 Feedback Blocked . | . . . . . . . . . . . . . . . . . Robot Schematics Acquired 4 | . . . . . . . . . . 2 . . . . 2 . Robots Built . | . . . . . . . . . . . . . . . . . Authchips . | . . . . . . . . . . . . . . . . . Time . | . . . . . . . . . . . . . . . . . Total Robot Build Rating . | . . . . . . . . . . . . . . . . . Part Schematics Acquired 16 | . . 1 1 . . 1 . . . 1 . . . 1 11 . Parts Built . | . . . . . . . . . . . . . . . . . Authchips . | . . . . . . . . . . . . . . . . . Time . | . . . . . . . . . . . . . . . . . Total Part Build Rating . | . . . . . . . . . . . . . . . . . Parts Repaired 6 | . . 1 2 3 . . . . . . . . . . . . Time 220 | . . 26 41 140 . . 13 . . . . . . . . . Parts Recycled . | . . . . . . . . . . . . . . . . . Recycled Matter . | . . . . . . . . . . . . . . . . . Retrieved Matter . | . . . . . . . . . . . . . . . . . Retrieved Components . | . . . . . . . . . . . . . . . . . Parts Scanalyzed 6 | . . 1 1 . . . . . . . . . . 1 2 1 Part Schematics Acquired 4 | . . 1 1 . . . . . . . . . . 1 1 . Parts Damaged 1 | . . 1 . . . . . . . . . . . . . . Bothacking | -11 -10 -9 -8 -7 -6 -5 -5 -5 -5 -5 -4 -4 -3 -2 -2 -1 ------------ Run | Scr Mat Mat Mat Fac Fac Fac Ext Cet Arc Hub Fac DSF Res Res Tes Acc Used RIF Installer . | . . . . . . . . . . . . . . . . . Robots Hacked . | . . . . . . . . . . . . . . . . . Non-combat . | . . . . . . . . . . . . . . . . . Combat . | . . . . . . . . . . . . . . . . . Robot Hacks Applied . | . . . . . . . . . . . . . . . . . Relay Couplers Released 4 | . . . . . . . . . . . . . . . 4 . Programmers 4 | . . . . . . . . . . . . . . . 4 . Fabnet Peak Effective % . | . . . . . . . . . . . . . . . . . Robots Rewired . | . . . . . . . . . . . . . . . . . Allies Hacked . | . . . . . . . . . . . . . . . . . Hacks Repelled . | . . . . . . . . . . . . . . . . . Allies | -11 -10 -9 -8 -7 -6 -5 -5 -5 -5 -5 -4 -4 -3 -2 -2 -1 -------- Run | Scr Mat Mat Mat Fac Fac Fac Ext Cet Arc Hub Fac DSF Res Res Tes Acc Total Allies 8 | . . . . . . . 8 . . . . . . . . . Largest Group 5 | . . . . . . . 5 3 1 . . . . . . . Highest-Rated Group 243 | . . . . . . . 243 198 146 . . . . . . . Highest-Rated Ally 159 | . . . . . . . 159 153 146 . . . . . . . Total Orders . | . . . . . . . . . . . . . . . . . Ally Attacks 67 | . . . . . . . 36 31 . . . . . . . . Total Damage 1865 | . . . . . . . 1152 713 . . . . . . . . Kills 13 | . . . . . . . 7 6 . . . . . . . . Allies Corrupted 2 | . . . . . . . 2 . . . . . . . . . Allies Melted 1 | . . . . . . . 1 . . . . . . . . . Intel | -11 -10 -9 -8 -7 -6 -5 -5 -5 -5 -5 -4 -4 -3 -2 -2 -1 ------- Run | Scr Mat Mat Mat Fac Fac Fac Ext Cet Arc Hub Fac DSF Res Res Tes Acc Robot Analysis Total 1 | . . . 1 . . . . . . . . . . . . . Derelict Logs Recovered . | . . . . . . . . . . . . . . . . . Drone Launches 2 | . . . . . . . . . . . 2 . . . . . Drone Recoveries . | . . . . . . . . . . . . . . . . . Exploration | -11 -10 -9 -8 -7 -6 -5 -5 -5 -5 -5 -4 -4 -3 -2 -2 -1 ------------- Run | Scr Mat Mat Mat Fac Fac Fac Ext Cet Arc Hub Fac DSF Res Res Tes Acc Turns Passed 19155 | 77 1340 2578 2074 2927 1017 274 1576 600 606 339 82 319 1771 892 651 2032 Spaces Moved 8437 | 56 607 1154 1083 1336 357 154 698 207 216 159 45 94 779 330 229 933 Core 339 | 31 . 1 . . . . . . . . . . . . 1 306 Treads 4360 | . . . . 619 357 154 698 187 124 159 45 94 779 330 228 586 Legs 3738 | 25 607 1153 1083 717 . . . 20 92 . . . . . . 41 Wheels . | . . . . . . . . . . . . . . . . . Hover . | . . . . . . . . . . . . . . . . . Flight . | . . . . . . . . . . . . . . . . . Fastest Speed 50 | 50 120 130 130 160 240 160 160 160 160 160 160 156 170 170 163 50 Average Speed 172 | 114 177 188 147 182 240 161 160 219 236 160 160 165 170 170 177 135 Slowest Speed 2400 | 150 260 600 270 400 240 240 160 340 340 160 160 250 170 170 450 2400 Overloaded Moves . | . . . . . . . . . . . . . . . . . Propulsion Burnouts . | . . . . . . . . . . . . . . . . . Robots Hopped . | . . . . . . . . . . . . . . . . . Cave-ins Triggered . | . . . . . . . . . . . . . . . . . Exploration Rate (%) 44 | 3 90 93 87 23 7 5 68 79 92 20 2 92 22 7 36 24 Regions Visited 16 Branch Regions 5 Pre-discovered Areas . | . . . . . . . . . . . . . . . . . Known Exits Taken 15 | 1 1 1 1 1 1 1 1 1 1 1 1 . 1 1 1 . Unknown Exits Taken . | . . . . . . . . . . . . . . . . . Scrap Searched . | . . . . . . . . . . . . . . . . . Spaces Dug 5 | . 1 . . . . . . . . . . . 4 . . . Terrain Destroyed 144 | . 1 1 4 7 . 1 4 2 4 4 . . 18 55 17 26 Melee . | . . . . . . . . . . . . . . . . . Projectile 134 | . 1 1 4 7 . 1 4 2 4 3 . . 18 46 17 26 AOE 9 | . . . . . . . . . . . . . . 9 . . Terrain Rammed . | . . . . . . . . . . . . . . . . . Walls Destroyed . | . . . . . . . . . . . . . . . . . Machines Disabled . | . . . . . . . . . . . . . . . . . Actions | -11 -10 -9 -8 -7 -6 -5 -5 -5 -5 -5 -4 -4 -3 -2 -2 -1 --------- Run | Scr Mat Mat Mat Fac Fac Fac Ext Cet Arc Hub Fac DSF Res Res Tes Acc Total 11102 | 65 796 1397 1370 1684 496 166 994 265 251 189 55 196 1100 485 325 1268 Wait 1333 | . 133 94 175 237 127 . 208 . . 2 . 55 204 61 3 34 Move 8421 | 55 606 1153 1082 1335 356 153 697 206 215 158 44 93 778 329 228 933 Hop . | . . . . . . . . . . . . . . . . . Pick Up 81 | 3 8 9 3 13 1 1 3 3 2 1 1 5 13 4 6 5 Fast Attach 81 | 7 . 11 2 10 . 4 4 2 1 1 2 4 7 . . 26 Attach 80 | . 1 2 2 3 2 2 3 9 4 3 4 . 2 6 9 28 Detach 16 | . . . . 5 . . . 2 2 . 3 . 1 . . 3 Swap 70 | . 5 13 8 8 . 1 2 5 2 . 1 2 12 4 5 2 Drop 71 | . 1 22 3 9 . . 4 . . . . 9 20 1 2 . Fire 877 | . 42 91 94 63 10 5 72 38 22 24 . 28 55 77 69 187 Melee 27 | . . . . . . . . . . . . . . . 2 25 Ram 10 | . . . . . . . . . . . . . . . . 10 Kick 7 | . . 2 1 . . . . . 3 . . . . . . 1 Crush 27 | . . . . 1 . . 1 . . . . . 8 3 . 14 Escape Stasis 1 | . . . . . . . . . . . . . . . 1 . Rewire . | . . . . . . . . . . . . . . . . . Trap . | . . . . . . . . . . . . . . . . . Miscellaneous . | . . . . . . . . . . . . . . . . . Route ------- -11/Scrapyard -10/Materials (discovered 4 exits: *Mat x3 / *Min) -9/Materials (discovered 5 exits: *Mat x3 / *Min / *Sto) -8/Materials (discovered 3 exits: *Fac x3) -7/Factory (discovered 6 exits: *Fac x4 / Low x2) -6/Factory -5/Factory -5/Extension (discovered 3 exits: *Fac x2 / *Cet) -5/Cetus -5/Archives (discovered 3 exits: *Fac / *Hub x2) -5/Hub_04(d) (discovered 2 exits: *Fac x2) -4/Factory -4/DSF -3/Research (discovered 5 exits: *Res x2 / Arm / Qua x2) -2/Research -2/Testing -1/Access History --------- Turn | Location | Event 16 | -11/Scrapyard | Identified exit to Materials 16 | -11/Scrapyard | Discovered exit to Materials (range 15) 78 | -11/Scrapyard | Entered Materials 78 | -10/Materials | Evolved 1 slot: Weapon x1 301 | -10/Materials | Build established: Hacker-Gunner 400 | -10/Materials | Identified exit to Materials 400 | -10/Materials | Discovered exit to Materials (range 16) 542 | -10/Materials | Identified exit to Mines 542 | -10/Materials | Discovered exit to Mines (range 12) 1418 | -10/Materials | Entered another Materials area 1418 | -9/Materials | Evolved 2 slots: Power x1, Utility x1 1611 | -9/Materials | Identified exit to Storage 1611 | -9/Materials | Discovered exit to Storage (range 5) 1634 | -9/Materials | Identified exit to Materials 1634 | -9/Materials | Discovered exit to Materials (range 14) 1669 | -9/Materials | Repaired Ion Engine 1919 | -9/Materials | Identified exit to Mines 2186 | -9/Materials | Discovered exit to Materials (range 16) 2873 | -9/Materials | Build established: Hacker-Mutant 3398 | -9/Materials | Build established: Hacker-Gunner 3792 | -9/Materials | Discovered exit to Materials (range 3) 3996 | -9/Materials | Entered another Materials area 3996 | -8/Materials | Evolved 2 slots: Propulsion x2 4678 | -8/Materials | Identified exit to Factory 4678 | -8/Materials | Discovered exit to Factory (range 4) 5288 | -8/Materials | Discovered exit to Factory (range 15) 5371 | -8/Materials | Repaired Imp. Light Cannon 5609 | -8/Materials | Repaired Cld. Ion Engine 5758 | -8/Materials | Discovered exit to Factory (range 10) 6070 | -8/Materials | Entered Factory 6070 | -7/Factory | Evolved 2 slots: Utility x2 6568 | -7/Factory | Identified exit to Lower Caves 6884 | -7/Factory | Garrison activated, responded to threat 7289 | -7/Factory | Repaired Cld. Ion Engine 7342 | -7/Factory | Repaired Cld. Ion Engine 7381 | -7/Factory | Repaired Titanium Leg 8428 | -7/Factory | Identified exit to Factory 8997 | -7/Factory | Entered another Factory area 8997 | -6/Factory | Evolved 2 slots: Utility x2 9986 | -6/Factory | Identified exit to Factory 9986 | -6/Factory | Discovered exit to Factory (range 7) 10014 | -6/Factory | Entered another Factory area 10014 | -5/Factory | Evolved 2 slots: Propulsion x2 10274 | -5/Factory | Identified exit to Extension 10274 | -5/Factory | Discovered exit to Extension (range 5) 10288 | -5/Factory | Entered Extension 10344 | -5/Extension | Rescued a captive Derelict 10601 | -5/Extension | Rescued a captive Derelict 10744 | -5/Extension | Spotted B-75 Beast 10764 | -5/Extension | Destroyed B-75 Beast 10788 | -5/Extension | Spotted B-75 Beast 10816 | -5/Extension | Destroyed B-75 Beast 11013 | -5/Extension | Disrupted transfer network 11259 | -5/Extension | Destroyed 12 combat bots 11277 | -5/Extension | Identified exit to Factory 11277 | -5/Extension | Discovered exit to Factory (range 3) 11328 | -5/Extension | Rescued A7 11367 | -5/Extension | Rescued a captive Derelict 11440 | -5/Extension | Rescued a captive Derelict 11505 | -5/Extension | Rescued a captive Derelict 11506 | -5/Extension | Rescued a captive Derelict 11554 | -5/Extension | Rescued a captive Derelict 11811 | -5/Extension | Identified exit to Cetus 11811 | -5/Extension | Discovered exit to Cetus (range 15) 11813 | -5/Extension | Discovered exit to Factory (range 15) 11864 | -5/Extension | Entered Cetus 11864 | -5/Cetus | Accompanied by 3 allies (A7) 11869 | -5/Cetus | Acquired a Cetus Manufacturing Module code from A7 11886 | -5/Cetus | Spotted Cetus Guard 11886 | -5/Cetus | Spotted Cetus Guard 11887 | -5/Cetus | Spotted Cetus Guard 11888 | -5/Cetus | Spotted Cetus Guard 11899 | -5/Cetus | Allies destroyed Cetus Guard 11908 | -5/Cetus | Allies destroyed Cetus Guard 11912 | -5/Cetus | Allies destroyed Cetus Guard 11913 | -5/Cetus | Destroyed Cetus Guard 12091 | -5/Cetus | Lost 9 parts (2p3n2u2w) 12095 | -5/Cetus | Destroyed 10 combat bots 12153 | -5/Cetus | Escorted A7 to Cetus Mainframe 12409 | -5/Cetus | Identified exit to Archives 12409 | -5/Cetus | Discovered exit to Archives (range 15) 12464 | -5/Cetus | Entered Archives 12464 | -5/Archives | Accompanied by 1 ally (A7) 12469 | -5/Archives | Received a hacking code to weaken MAIN.C 12533 | -5/Archives | Unable to access archive contents 12723 | -5/Archives | Unable to access archive contents 12740 | -5/Archives | Discovered exit to Factory (range 15) 12768 | -5/Archives | Unable to access archive contents 12812 | -5/Archives | Unable to access archive contents 12815 | -5/Archives | Identified exit to Hub_04(d) 12815 | -5/Archives | Discovered exit to Hub_04(d) (range 16) 12944 | -5/Archives | Discovered exit to Hub_04(d) (range 13) 13070 | -5/Archives | Entered Hub_04(d) 13072 | -5/Hub_04(d) | Discovered exit to Factory (range 14) 13173 | -5/Hub_04(d) | Build established: Scavenger-Gunner 13343 | -5/Hub_04(d) | Discovered exit to Factory (range 10) 13401 | -5/Hub_04(d) | Destroyed 7 combat bots 13409 | -5/Hub_04(d) | Entered Factory 13409 | -4/Factory | Evolved 2 slots: Power x1, Utility x1 13491 | -4/Factory | Identified exit to DSF 13491 | -4/Factory | Entered DSF 13491 | -4/DSF | Accompanied by 2 allies 13542 | -4/DSF | Additional patrols routed to DSF 13701 | -4/DSF | Identified exit to Research 13701 | -4/DSF | Discovered exit to Research (range 16) 13752 | -4/DSF | Sterilization system engaged 13772 | -4/DSF | Ambient heat levels rising (+10) 13777 | -4/DSF | Build established: Generator-Gunner 13787 | -4/DSF | Ambient heat levels rising (+10) 13802 | -4/DSF | Ambient heat levels rising (+10) 13810 | -4/DSF | Entered Research 13810 | -3/Research | Evolved 2 slots: Propulsion x2 14095 | -3/Research | Identified exit to Armory 14095 | -3/Research | Identified exit to Quarantine 15021 | -3/Research | Found Prototype Processor 15022 | -3/Research | Identified Exp. Targeting Computer 15561 | -3/Research | Identified exit to Research 15561 | -3/Research | Discovered exit to Research (range 5) 15561 | -3/Research | Discovered exit to Research (range 12) 15581 | -3/Research | Entered another Research area 15581 | -2/Research | Evolved 2 slots: Utility x2 15737 | -2/Research | Spotted B-90 Cyclops 15786 | -2/Research | Found Prototype Slashing Weapon 15794 | -2/Research | Identified Vibroblade 16048 | -2/Research | Destroyed B-90 Cyclops 16396 | -2/Research | Identified exit to Testing 16396 | -2/Research | Discovered exit to Testing (range 14) 16473 | -2/Research | Entered Testing 16723 | -2/Testing | Scanned by Researcher 16931 | -2/Testing | Destroyed 7 combat bots 16967 | -2/Testing | Lost 3 parts (2n1u) 16987 | -2/Testing | System corruption reached 10% 17062 | -2/Testing | Build established: Generator-Mutant 17084 | -2/Testing | Identified exit to Access 17084 | -2/Testing | Discovered exit to Access (range 10) 17087 | -2/Testing | Found Prototype Slashing Weapon 17124 | -2/Testing | Entered Access 17124 | -1/Access | Evolved 2 slots: Power x1, Utility x1 17290 | -1/Access | Garrison activated, responded to threat 17422 | -1/Access | Build established: Generator-Gunner 17454 | -1/Access | Lost 7 parts (1p6u) 17618 | -1/Access | System corruption reached 10% 17624 | -1/Access | Garrison activated, responded to threat 17899 | -1/Access | First assault squad dispatched 18060 | -1/Access | Garrison activated, responded to threat 18061 | -1/Access | Lost 4 parts (2p2u) 18102 | -1/Access | Destroyed 9 combat bots 18439 | -1/Access | Build established: Generator-Tank 18538 | -1/Access | Garrison activated, responded to threat 18549 | -1/Access | System corruption reached 30% 18597 | -1/Access | Lost 22 parts (4p4n8u6w) 18606 | -1/Access | Identified Nanosword 18775 | -1/Access | Lost 12 parts (3p1n4u4w) 18869 | -1/Access | Core integrity fell below 50% 18899 | -1/Access | Lost 10 parts (1p1n3u5w) 19019 | -1/Access | Build established: Hacker-Mutant 19054 | -1/Access | Core integrity fell below 20% 19102 | -1/Access | Lost 4 parts (1p2n1w) 19156 | -1/Access | Self-destructed Last Messages --------------- 19063_ Penetrated by Slug. 19063_ R-10 Processor collects Biometal Leg. 19066_ Q042-u follow-up attacks with Gravity Flail. 19071_ Critical hit (Smash). 19071_ Arm. Heavy Treads destroyed. 19071_ System corrupted by crushing effect (+2). 19073_ Slug penetrates Q042-u. 19074_ Q042-u follow-up attacks with Gravity Flail. 19076_ Knocked back. 19077_ Penetrated by Slug. 19081_ Slug penetrates Wall. 19092_ System corrupted: Matter fused (-5). 19109_ System corrupted: Component data lost. 19125_ System corrupted: Substantial component data lost. 19142_ W-44 Eye distress signal alerts nearby ally. 19143_ System corrupted: Matter fused (-6). 19143_ Critical hit (Destroy). 19143_ Arm. Heavy Treads destroyed. 19151_ Acquired Enh. Nova Cannon. 19152_ S-43 Plague destroyed. Map ----- +----------------------------------------------------+ | | | | | | | ?????????????????????????????????????????????????? | | ?????????????????????????????????????????????????? | | #############????????????????????????????????????? | | #????????????????????????????????????? | | #????????????????????????????????????? | | ! #????????????????????????????????????? | | #????????????????????????????????????? | | #????????????????????????????????????? | | #????????????????????????????????????? | | #????????????????????????????????????? | | #????????????????????????????????????? | | #????????????????????????????????????? | | #????????????????????????????????????? | | #????????????????????????????????????? | | #????????????????????????????????????? | | ######+#######???????????????????????????????????? | | #???????????????????????????????????? | | #???????????????????????????????????? | | #???????????????????????????????????? | | #???????????????????????????????????? | | #?????##########????????????????????? | | #?????# #????????????????????? | | #?????# @ #????????????????????? | | ######### #?????# #????????????????????? | | #???????# #?????# #????????????????????? | | #???????# #?????# #????????????????????? | | #########+####??# #????????????????????? | | # #??# ! #????????????????????? | | # #??# * #????????????????????? | | # "" #??# s%s #????????????????????? | | # "" #??###+#s#;##### ????????????? | | # """" ###### AR #???????????? | | ? ?# """" + #???????????? | | ?? / ! """" ###### #???????????? | | ? # ??"""" #????#######+### ????????????? | | ?# ???"""" #???????????????????#????????????? | | ???????? "" #????????????????????????????????? | | ???????? #????????????????????????????????? | | ??????? #????????????????????????????????? | | ??????#####+#####????????????????????????????????? | | ?????????????????????????????????????????????????? | | ?????????????????????????????????????????????????? | | ?????????????????????????????????????????????????? | | ?????????????????????????????????????????????????? | | ?????????????????????????????????????????????????? | | ?????????????????????????????????????????????????? | | ?????????????????????????????????????????????????? | +----------------------------------------------------+ Best States ------------- Heat Dissipation 121 Energy Generation 91 Energy Capacity 1070 Matter Stores 400 Matter Capacity 400 Sight Range 20 Terrain Scan Density 10 Additional Mass Support 16 Base Temperature (-) 200 EM Shielding 4 Armor Coverage 225 Resistance: KI 35 Resistance: TH 35 Resistance: EX 35 Resistance: EM 35 Resistance: I 35 Resistance: S 35 Resistance: P 35 Core Shielding 20 Power Shielding 33 Propulsion Shielding 33 Utility Shielding 33 Phase Shifting 15 Evasion (%) 55 Targeting Accuracy 14 Target Analysis 8 Recoil Reduction 8 Matter Filtering 30 Kinecelleration 40 Offensive Hacking 20 Defensive Hacking 10 Item Schematics ----------------- Titanium Leg | -9/Materials | Scanalyzed Trap Scanner | -8/Materials | Scanalyzed Antimatter Reactor | -5/Factory | Hacked Hyp. Railgun | -5/Hub_04(d) | Hacked Arm. Heavy Treads | -2/Research | Scanalyzed Imp. Antigrav System | -2/Testing | Scanalyzed Exp. Biometal Medium Treads | -2/Testing | Archive Adv. Matter Compressor | -2/Testing | Archive Exp. Thermal Shield | -2/Testing | Archive Exp. Coolant Injector | -2/Testing | Archive Adv. Gravity Neutralizer | -2/Testing | Archive Helical Railgun | -2/Testing | Archive Exp. Hacking Suite | -2/Testing | Archive Hvy. Neutron Cannon | -2/Testing | Archive Enh. Force Rifle | -2/Testing | Archive Exp. Biometal Heavy Treads | -2/Testing | Archive Robot Schematics ------------------ Y-54 Guardian | -5/Hub_04(d) | Hacked S-27 Virus | -5/Hub_04(d) | Hacked G-73 Enforcer | -2/Testing | Archive A-02 Transporter | -2/Testing | Archive Fabricated ------------ Nothing Alien Tech Used ----------------- None Achievements -------------- Z1$+NX3F=JRE3_ZNQR Challenges ------------ None Game ------ Seed CryofiberHeatKatana Manual? 0 Play Time 02:45:37 Cumulative 1026.8 hours Start 2022.03.27 @ 14:16:33 End 2022.03.27 @ 18:12:30 Sessions 3 Manual Loads 0 Difficulty Explorer Special Mode None Game No. 763 Rogue 62 Adventurer 0 Explorer 701 Win Type - Total 4 Types 4/0/0/0/0/0/0/0/0 Lore% 68 Gallery% 77 Achievement% 60 Wizard Run 0 Options --------- ASCII 0 Keyboard 0 Movement Mouse Keybinds 0 Fullscreen 1 Font 24/Smallcaps Map View 76x50 Tactical HUD 1 Map Filters NONE Filters NONE Steam 1 RUN: c4a0551a-de7f-49fd-ba7b-063df6079660